fUST/lending_fUST_20250307
["ID","MTS","AMOUNT","RATE_DAILY","PERIOD"]
[355569972,1741305033809,-500.0,0.00032365,2]
[355569973,1741305033818,-500.0,0.00032365,2]
[355569974,1741305033829,-500.0,0.00032365,2]
[355569975,1741305033838,-500.0,0.00032365,2]
[355569976,1741305033848,-500.0,0.00032365,2]
[355569977,1741305033858,-500.0,0.00032365,2]
[355569978,1741305033868,-500.0,0.00032365,2]
[355569979,1741305033877,-500.0,0.00032365,2]
[355569980,1741305033887,-500.0,0.00032365,2]
[355569981,1741305033897,-424.0348957,0.00032365,2]
[355569982,1741305033908,-500.0,0.00032365,2]
[355569983,1741305033917,-500.0,0.00032365,2]
[355569984,1741305033927,-500.0,0.00032365,2]
[355569985,1741305033938,-500.0,0.00032365,2]
[355569986,1741305033947,-500.0,0.00032365,2]
[355569987,1741305033957,-500.0,0.00032365,2]
[355569988,1741305033966,-500.0,0.00032365,2]
[355569989,1741305033976,-500.0,0.00032365,2]
[355569990,1741305033985,-500.0,0.00032365,2]
[355569991,1741305033995,-500.0,0.00032365,2]
[355569992,1741305034005,-500.0,0.00032365,2]
[355569993,1741305034014,-500.0,0.00032365,2]
[355569994,1741305034024,-500.0,0.00032365,2]
[355569995,1741305034034,-500.0,0.00032365,2]
[355569996,1741305034045,-519.66785402,0.00032365,2]
[355569997,1741305034055,-519.66785402,0.00032365,2]
[355569998,1741305034064,-519.66785402,0.00032365,2]
[355569999,1741305034073,-519.66785402,0.00032365,2]
[355570000,1741305034083,-519.66785402,0.00032365,2]
[355570001,1741305034093,-519.66785402,0.00032365,2]
[355570002,1741305034102,-519.66785402,0.00032365,2]
[355570003,1741305034112,-519.66785402,0.00032365,2]
[355570004,1741305034122,-519.66785402,0.00032365,2]
[355570005,1741305034131,-519.66785402,0.00032365,2]
[355570006,1741305034141,-500.0,0.00032365,2]
[355570007,1741305034150,-519.66785402,0.00032365,2]
[355570008,1741305034160,-500.0,0.00032365,2]
[355570009,1741305034171,-519.66785402,0.00032365,2]
[355570010,1741305034180,-519.66785402,0.00032365,2]
[355570011,1741305034190,-500.0,0.00032365,2]
[355570012,1741305034200,-519.66785402,0.00032365,2]
[355570013,1741305034210,-513.18937064,0.00032365,2]
[355570014,1741305034220,-519.66785402,0.00032365,2]
[355570015,1741305034230,-519.66785402,0.00032365,2]
[355570016,1741305034240,-519.66785402,0.00032365,2]
[355570017,1741305034250,-519.66785402,0.00032365,2]
[355570018,1741305034260,-519.66785402,0.00032365,2]
[355570019,1741305034269,-519.66785402,0.00032365,2]
[355570020,1741305034279,-519.66785402,0.00032365,2]
[355570021,1741305034289,-519.66785402,0.00032365,2]
[355570022,1741305034298,-519.66785402,0.00032365,2]
[355570023,1741305034308,-519.66785402,0.00032365,2]
[355570024,1741305034317,-519.66785402,0.00032365,2]
[355570025,1741305034328,-519.66785402,0.00032365,2]
[355570026,1741305034338,-519.66785402,0.00032365,2]
[355570027,1741305034347,-519.66785402,0.00032365,2]
[355570028,1741305034357,-519.66785402,0.00032365,2]
[355570029,1741305034367,-519.66785402,0.00032365,2]
[355570030,1741305034377,-519.66785402,0.00032365,2]
[355570031,1741305034386,-519.66785402,0.00032365,2]
[355570032,1741305034396,-519.66785402,0.00032365,2]
[355570033,1741305034406,-519.66785402,0.00032365,2]
[355570034,1741305034416,-519.66785402,0.00032365,2]
[355570035,1741305034425,-506.07654092,0.00032365,2]
[355570036,1741305034435,-506.07654092,0.00032365,2]
[355570037,1741305034444,-506.07654092,0.00032365,2]
[355570038,1741305034454,-506.07654092,0.00032365,2]
[355570039,1741305034464,-506.07654092,0.00032365,2]
[355570040,1741305034473,-506.07654092,0.00032365,2]
[355570041,1741305034483,-506.07654092,0.00032365,2]
[355570042,1741305034493,-506.07654092,0.00032365,2]
[355570043,1741305034503,-506.07654092,0.00032365,2]
[355570044,1741305034512,-506.07654092,0.00032365,2]
[355570045,1741305034522,-506.07654092,0.00032365,2]
[355570046,1741305034532,-506.07654092,0.00032365,2]
[355570047,1741305034542,-506.07654092,0.00032365,2]
[355570048,1741305034551,-2973.00575134,0.00032457,2]
[355570049,1741305034561,-49290.380672,0.00032495,2]
[355570050,1741305034571,-1647.917,0.000325,20]
[355570051,1741305034581,-2973.00575134,0.00032553,2]
[355570052,1741305034590,-2973.00575134,0.00032649,2]
[355570053,1741305034600,-10122.8080176,0.0003269,2]
[355570054,1741305034611,-556.94604065,0.00032729,2]
[355570055,1741305034620,-500.0,0.00032729,2]
[355570056,1741305034630,-500.0,0.00032729,2]
[355570057,1741305034639,-210.80993406,0.00032729,2]
[355570058,1741305034649,-500.0,0.00032729,2]
[355570059,1741305034659,-500.0,0.00032729,2]
[355570060,1741305034673,-500.0,0.0003273,2]
[355570061,1741305034683,-540.0,0.0003273,2]
[355570062,1741305034693,-583.2,0.0003273,2]
[355570063,1741305034703,-629.856,0.0003273,2]
[355570064,1741305034714,-862.839382,0.0003273,2]
[355570065,1741305034724,-49290.380672,0.0003273,2]
[355570066,1741305034733,-160.0,0.00032739,10]
[355570067,1741305034745,-98580.7613439,0.0003274,2]
[355570068,1741305034754,-160.0,0.00032749,10]
[355570069,1741305034764,-222000.0,0.0003275,2]
[355570070,1741305034774,-500.42651217,0.00032773,5]
[355570071,1741305034784,-500.0,0.00032773,5]
[355570072,1741305034794,-500.0,0.00032773,5]
[355570073,1741305034803,-500.0,0.00032773,5]
[355570074,1741305034813,-5808.64802472,0.00032776,2]
[355570075,1741305034823,-24645.190336,0.00032829,2]
[355570076,1741305034833,-49290.380672,0.0003283,2]
[355570077,1741305034843,-113850.88621442,0.0003285,30]
[355570078,1741305035033,-29649.26240795,0.0003285,30]
[355570082,1741305038751,-5159.543859,0.000319,6]
[355570382,1741306237932,-460.8783829,0.000298,2]
[355570383,1741306237942,-203.38747373,0.00030318,5]
[355570384,1741306237952,-517.703646,0.00030418,2]
[355570385,1741306237962,-947.9097223,0.00030547,2]
[355570386,1741306237972,-175.5298,0.00030634,2]
[355570387,1741306237981,-535.89659178,0.00031158,2]
[355570388,1741306237990,-190.369522,0.00031258,2]
[355570389,1741306238000,-1753.58778224,0.00032,30]
[355570390,1741306238009,-4318.36082124,0.00032144,2]
[355570391,1741306238019,-216.75275579,0.00032153,2]
[355570392,1741306238028,-216.75275578,0.00032173,2]
[355570393,1741306238037,-15625.0,0.00032204,2]
[355570394,1741306238047,-400.0,0.00032207,2]
[355570395,1741306238056,-168.0,0.00032211,2]
[355570396,1741306238069,-19211.7328137,0.00032243,2]
[355570397,1741306238079,-500.0,0.00032244,2]
[355570398,1741306238089,-500.0,0.00032244,2]
[355570399,1741306238099,-500.0,0.00032244,2]
[355570400,1741306238109,-500.0,0.00032244,2]
[355570401,1741306238118,-500.0,0.00032244,2]
[355570402,1741306238128,-544.950845,0.00032244,2]
[355570403,1741306238140,-500.0,0.00032244,2]
[355570404,1741306238150,-500.0,0.00032244,2]
[355570405,1741306238160,-500.0,0.00032244,2]
[355570406,1741306238171,-453.56703618,0.00032244,2]
[355570407,1741306238181,-500.0,0.00032244,2]
[355570408,1741306238191,-500.0,0.00032244,2]
[355570409,1741306238200,-595.07835403,0.00032244,2]
[355570410,1741306238210,-500.0,0.00032244,2]
[355570411,1741306238219,-500.0,0.00032244,2]
[355570412,1741306238229,-500.0,0.00032244,2]
[355570413,1741306238239,-500.0,0.00032244,2]
[355570414,1741306238249,-500.0,0.00032244,2]
[355570415,1741306238258,-500.0,0.00032244,2]
[355570416,1741306238269,-500.0,0.00032244,2]
[355570417,1741306238279,-500.0,0.00032244,2]
[355570418,1741306238289,-500.0,0.00032244,2]
[355570419,1741306238299,-500.0,0.00032244,2]
[355570420,1741306238309,-500.0,0.00032244,2]
[355570421,1741306238318,-500.0,0.00032244,2]
[355570422,1741306238328,-500.0,0.00032244,2]
[355570423,1741306238337,-500.0,0.00032244,2]
[355570424,1741306238347,-486.31893706,0.00032244,2]
[355570425,1741306238357,-500.0,0.00032244,2]
[355570426,1741306238370,-500.0,0.00032244,2]
[355570427,1741306238380,-500.0,0.00032244,2]
[355570428,1741306238391,-500.0,0.00032244,2]
[355570429,1741306238401,-500.0,0.00032244,2]
[355570430,1741306238411,-500.0,0.00032244,2]
[355570431,1741306238422,-500.0,0.00032244,2]
[355570432,1741306238432,-500.0,0.00032244,2]
[355570433,1741306238442,-500.0,0.00032244,2]
[355570434,1741306238451,-500.0,0.00032244,2]
[355570435,1741306238461,-500.0,0.00032244,2]
[355570436,1741306238471,-500.0,0.00032244,2]
[355570437,1741306238481,-500.0,0.00032244,2]
[355570438,1741306238491,-500.0,0.00032244,2]
[355570439,1741306238502,-500.0,0.00032244,2]
[355570440,1741306238511,-500.0,0.00032244,2]
[355570441,1741306238521,-500.0,0.00032244,2]
[355570442,1741306238531,-500.0,0.00032244,2]
[355570443,1741306238541,-500.0,0.00032244,2]
[355570444,1741306238551,-500.0,0.00032244,2]
[355570445,1741306238561,-500.0,0.00032244,2]
[355570446,1741306238573,-500.0,0.00032244,2]
[355570447,1741306238583,-500.0,0.00032244,2]
[355570448,1741306238592,-500.0,0.00032244,2]
[355570449,1741306238602,-500.0,0.00032244,2]
[355570450,1741306238612,-500.0,0.00032244,2]
[355570451,1741306238623,-500.0,0.00032244,2]
[355570452,1741306238633,-500.0,0.00032244,2]
[355570453,1741306238643,-500.0,0.00032244,2]
[355570454,1741306238652,-500.0,0.00032244,2]
[355570455,1741306238662,-500.0,0.00032244,2]
[355570456,1741306238674,-500.0,0.00032244,2]
[355570457,1741306238684,-500.0,0.00032244,2]
[355570458,1741306238694,-500.0,0.00032244,2]
[355570459,1741306238704,-500.0,0.00032244,2]
[355570460,1741306238715,-500.0,0.00032244,2]
[355570461,1741306238725,-500.0,0.00032244,2]
[355570462,1741306238735,-500.0,0.00032244,2]
[355570463,1741306238745,-500.0,0.00032244,2]
[355570464,1741306238756,-500.0,0.00032244,2]
[355570465,1741306238766,-500.0,0.00032244,2]
[355570466,1741306238776,-550.0,0.00032244,2]
[355570467,1741306238786,-500.0,0.00032244,2]
[355570468,1741306238797,-500.0,0.00032244,2]
[355570469,1741306238806,-500.0,0.00032244,2]
[355570470,1741306238816,-500.0,0.00032244,2]
[355570471,1741306238826,-500.0,0.00032244,2]
[355570472,1741306238836,-500.0,0.00032244,2]
[355570473,1741306238845,-500.0,0.00032244,2]
[355570474,1741306238855,-500.0,0.00032244,2]
[355570475,1741306238865,-500.0,0.00032244,2]
[355570476,1741306238876,-500.0,0.00032244,2]
[355570477,1741306238886,-500.0,0.00032244,2]
[355570478,1741306238896,-500.0,0.00032244,2]
[355570479,1741306238906,-500.0,0.00032244,2]
[355570480,1741306238916,-12308.69304279,0.00032245,2]
[355570540,1741306240312,-45326.50539821,0.00032245,2]
[355570542,1741306240322,-29835.17428946,0.00032255,2]
[355570547,1741306240356,-3148.18315918,0.00032255,2]
[355570863,1741306243089,-307.25225527,0.00030155,2]
[355570865,1741306243099,-26892.74774373,0.00032255,2]
[355570871,1741306243151,-641.68652285,0.00032255,2]
[355570874,1741306243164,-6682.32933704,0.00032255,2]
[355570876,1741306243176,-471.25627789,0.00032255,2]
[355571739,1741307433530,-300.0,0.00020609,2]
[355571741,1741307433541,-16333.98908162,0.0002061,2]
[355571743,1741307433550,-420.0,0.00022427,2]
[355571745,1741307433560,-587.0,0.00024405,2]
[355571747,1741307433569,-200.0,0.00025826,2]
[355571749,1741307433579,-22367.61715242,0.00026198,2]
[355571751,1741307433591,-2532.38284758,0.00026198,2]
[355571753,1741307433601,-4959.15864986,0.00026458,2]
[355571755,1741307433610,-823.0,0.00026558,2]
[355571757,1741307433620,-1752.67968,0.00026633,2]
[355571759,1741307433629,-9169.22757113,0.000269,4]
[355571761,1741307433643,-16194.8548296,0.00027173,2]
[355571763,1741307433653,-655.86418651,0.00027197,2]
[355571765,1741307433663,-655.86418647,0.00027222,2]
[355571766,1741307433673,-655.86418647,0.00027247,2]
[355571767,1741307433682,-655.86418647,0.00027272,2]
[355571768,1741307433692,-1478.97195515,0.00027297,2]
[355571769,1741307433702,-655.86418647,0.00027297,2]
[355571770,1741307433712,-751.49,0.00027375,3]
[355571771,1741307433722,-28882.9123044,0.00027385,2]
[355571772,1741307433732,-500.0,0.00027386,2]
[355571773,1741307433742,-500.0,0.00027386,2]
[355571774,1741307433752,-500.0,0.00027386,2]
[355571775,1741307433762,-409.13199135,0.00027386,2]
[355571776,1741307433772,-206.84186448,0.00027386,2]
[355571777,1741307433782,-500.0,0.00027386,2]
[355571778,1741307433792,-500.0,0.00027386,2]
[355571779,1741307433802,-144414.561522,0.00027387,2]
[355571780,1741307433812,-200.80185206,0.00027397,2]
[355571781,1741307433822,-9999.0,0.00027397,2]
[355571782,1741307433832,-500.0,0.00027397,3]
[355571783,1741307433841,-662.59,0.00027397,3]
[355571784,1741307433851,-500.0,0.00027397,3]
[355571785,1741307433862,-500.0,0.00027397,3]
[355571786,1741307433872,-562.88,0.00027397,3]
[355571787,1741307433882,-500.0,0.00027397,3]
[355571788,1741307433894,-1226.37,0.00027397,3]
[355571789,1741307433904,-1752.79,0.00027397,3]
[355571790,1741307433914,-1250.12,0.00027397,3]
[355571791,1741307433924,-869.26,0.00027397,3]
[355571792,1741307433935,-501.14,0.00027397,3]
[355571793,1741307433945,-210.61118412,0.00027397,3]
[355571794,1741307433954,-1032.39,0.00027397,3]
[355571795,1741307433964,-961.43,0.00027397,3]
[355571796,1741307433974,-1674.61,0.00027397,3]
[355571797,1741307433984,-583.81,0.00027397,3]
[355571798,1741307433994,-153.10072849,0.00027397,3]
[355571799,1741307434003,-500.0,0.00027397,3]
[355571800,1741307434013,-500.0,0.00027397,2]
[355571801,1741307434023,-1641.96,0.00027397,3]
[355571802,1741307434033,-500.0,0.00027397,3]
[355571804,1741307434042,-843.57,0.00027397,3]
[355571806,1741307434051,-500.0,0.00027397,3]
[355571807,1741307434060,-4022.08,0.00027397,3]
[355571809,1741307434070,-500.0,0.00027397,3]
[355571811,1741307434079,-500.0,0.00027397,3]
[355571814,1741307434089,-500.0,0.00027397,3]
[355571815,1741307434098,-500.0,0.00027397,3]
[355571818,1741307434109,-703.61,0.00027397,3]
[355571820,1741307434119,-500.0,0.00027397,3]
[355571822,1741307434130,-590.37,0.00027397,3]
[355571824,1741307434143,-500.0,0.00027397,3]
[355571826,1741307434152,-500.0,0.00027397,3]
[355571828,1741307434162,-1808.32,0.00027397,3]
[355571830,1741307434171,-2825.69,0.00027397,3]
[355571831,1741307434181,-2440.64,0.00027397,3]
[355571833,1741307434191,-500.0,0.00027397,3]
[355571835,1741307434201,-2487.29,0.00027397,3]
[355571837,1741307434211,-1907.94,0.00027397,3]
[355571840,1741307434222,-660.84,0.00027397,3]
[355571842,1741307434231,-500.0,0.00027397,3]
[355571844,1741307434241,-2808.34,0.00027397,3]
[355571846,1741307434250,-522.04,0.00027397,3]
[355571848,1741307434260,-1170.32,0.00027397,3]
[355571850,1741307434270,-2644.1,0.00027397,3]
[355571852,1741307434282,-919.72,0.00027397,3]
[355571854,1741307434295,-500.0,0.00027397,3]
[355571856,1741307434305,-500.0,0.00027397,3]
[355571858,1741307434315,-598.32,0.00027397,3]
[355571860,1741307434325,-500.0,0.00027397,3]
[355571862,1741307434335,-1625.8,0.00027397,3]
[355571864,1741307434344,-9451.79,0.00027397,3]
[355571866,1741307434354,-500.0,0.00027397,3]
[355571868,1741307434364,-2506.95,0.00027397,3]
[355571869,1741307434374,-500.0,0.00027397,3]
[355571872,1741307434387,-781.39,0.00027397,3]
[355571874,1741307434397,-500.0,0.00027397,3]
[355571876,1741307434407,-1067.13,0.00027397,3]
[355571877,1741307434418,-689.62,0.00027397,3]
[355571879,1741307434428,-5429.0,0.00027397,3]
[355571881,1741307434438,-500.0,0.00027397,3]
[355571883,1741307434451,-3036.72,0.00027397,3]
[355571885,1741307434463,-500.0,0.00027397,3]
[355571887,1741307434473,-1458.53,0.00027397,3]
[355571890,1741307434483,-500.0,0.00027397,3]
[355571892,1741307434493,-500.0,0.00027397,3]
[355571894,1741307434502,-2498.34,0.00027397,3]
[355571895,1741307434512,-2492.81,0.00027397,3]
[355571897,1741307434521,-500.0,0.00027397,3]
[355571899,1741307434533,-1000.0,0.00027397,7]
[355571902,1741307434542,-835.27,0.00027397,3]
[355571904,1741307434552,-500.0,0.00027397,3]
[355571905,1741307434562,-1603.14,0.00027397,3]
[355571906,1741307434572,-7838.65,0.00027397,3]
[355571907,1741307434582,-1107.91,0.00027397,3]
[355571908,1741307434592,-1331.05,0.00027397,3]
[355571909,1741307434602,-1357.52,0.00027397,3]
[355571910,1741307434612,-964.55,0.00027397,3]
[355571911,1741307434621,-766.28,0.00027397,3]
[355571912,1741307434631,-1265.72,0.00027397,3]
[355571913,1741307434644,-500.0,0.00027397,3]
[355571914,1741307434654,-2700.69,0.00027397,3]
[355571915,1741307434664,-3210.96,0.00027397,3]
[355571916,1741307434674,-2162.64,0.00027397,3]
[355571917,1741307434684,-540.58,0.00027397,3]
[355571918,1741307434694,-500.0,0.00027397,3]
[355571919,1741307434703,-3979.03,0.00027397,3]
[355571920,1741307434713,-500.0,0.00027397,3]
[355571921,1741307434722,-500.0,0.00027397,3]
[355571922,1741307434733,-1315.76,0.00027397,3]
[355571923,1741307434743,-500.0,0.00027397,3]
[355571924,1741307434752,-1053.73,0.00027397,3]
[355571925,1741307434768,-840.59,0.00027397,3]
[355571926,1741307434779,-500.0,0.00027397,3]
[355571927,1741307434789,-9332.2,0.00027397,3]
[355571928,1741307434799,-500.0,0.00027397,3]
[355571930,1741307434809,-500.0,0.00027397,3]
[355571932,1741307434819,-1881.66,0.00027397,3]
[355571934,1741307434828,-500.0,0.00027397,3]
[355571936,1741307434838,-615.28,0.00027397,3]
[355571938,1741307434847,-500.0,0.00027397,2]
[355571940,1741307434857,-39742.9394509,0.000275,2]
[355571942,1741307434866,-48414.65511316,0.00027661,2]
[355571945,1741307434889,-9351.16949574,0.00027661,2]
[355571947,1741307434899,-489.4113249,0.00027671,2]
[355571949,1741307434908,-662.59,0.00027671,3]
[355571951,1741307434918,-500.0,0.00027671,3]
[355571953,1741307434928,-500.0,0.00027671,3]
[355571955,1741307434938,-562.88,0.00027671,3]
[355571956,1741307434947,-615.21637303,0.00027671,3]
[355571959,1741307434957,-1226.37,0.00027671,3]
[355571961,1741307434966,-1752.79,0.00027671,3]
[355571963,1741307434976,-1250.12,0.00027671,3]
[355571965,1741307434986,-869.26,0.00027671,3]
[355571967,1741307434995,-501.14,0.00027671,3]
[355571969,1741307435005,-1032.39,0.00027671,3]
[355571971,1741307435015,-961.43,0.00027671,3]
[355571973,1741307435024,-1674.61,0.00027671,3]
[355571975,1741307435034,-583.81,0.00027671,3]
[355571977,1741307435044,-500.0,0.00027671,3]
[355571979,1741307435055,-555.61094401,0.00027671,2]
[355571981,1741307435066,-1641.96,0.00027671,3]
[355571983,1741307435076,-176.449838,0.00027671,3]
[355571985,1741307435085,-843.57,0.00027671,3]
[355571987,1741307435095,-500.0,0.00027671,3]
[355571989,1741307435104,-4022.08,0.00027671,3]
[355571991,1741307435114,-500.0,0.00027671,3]
[355571993,1741307435123,-402.26508646,0.00027671,3]
[355571995,1741307435132,-500.0,0.00027671,3]
[355571997,1741307435148,-500.0,0.00027671,3]
[355571999,1741307435158,-703.61,0.00027671,3]
[355572001,1741307435168,-500.0,0.00027671,3]
[355572003,1741307435178,-590.37,0.00027671,3]
[355572005,1741307435187,-500.0,0.00027671,3]
[355572007,1741307435199,-500.0,0.00027671,3]
[355572009,1741307435209,-1808.32,0.00027671,3]
[355572011,1741307435218,-2825.69,0.00027671,3]
[355572013,1741307435227,-2440.64,0.00027671,3]
[355572015,1741307435237,-500.0,0.00027671,3]
[355572017,1741307435246,-2487.29,0.00027671,3]
[355572019,1741307435257,-1907.94,0.00027671,3]
[355572021,1741307435267,-660.84,0.00027671,3]
[355572023,1741307435277,-500.0,0.00027671,3]
[355572025,1741307435287,-2808.34,0.00027671,3]
[355572027,1741307435297,-522.04,0.00027671,3]
[355572030,1741307435307,-1170.32,0.00027671,3]
[355572032,1741307435317,-2644.1,0.00027671,3]
[355572034,1741307435326,-919.72,0.00027671,3]
[355572036,1741307435335,-500.0,0.00027671,3]
[355572037,1741307435345,-500.0,0.00027671,3]
[355572040,1741307435355,-598.32,0.00027671,3]
[355572042,1741307435364,-500.0,0.00027671,3]
[355572044,1741307435374,-1625.8,0.00027671,3]
[355572046,1741307435387,-9451.79,0.00027671,3]
[355572048,1741307435397,-338.21800538,0.00027671,3]
[355572050,1741307435407,-2506.95,0.00027671,3]
[355572052,1741307435418,-500.0,0.00027671,3]
[355572054,1741307435427,-781.39,0.00027671,3]
[355572056,1741307435438,-500.0,0.00027671,3]
[355572058,1741307435450,-1067.13,0.00027671,3]
[355572060,1741307435461,-689.62,0.00027671,3]
[355572062,1741307435471,-5429.0,0.00027671,3]
[355572064,1741307435485,-500.0,0.00027671,3]
[355572065,1741307435495,-3036.72,0.00027671,3]
[355572067,1741307435505,-469.81760216,0.00027671,3]
[355572069,1741307435515,-1458.53,0.00027671,3]
[355572071,1741307435524,-500.0,0.00027671,3]
[355572073,1741307435534,-500.0,0.00027671,3]
[355572075,1741307435544,-2498.34,0.00027671,3]
[355572077,1741307435553,-2492.81,0.00027671,3]
[355572079,1741307435564,-500.0,0.00027671,3]
[355572081,1741307435575,-1000.0,0.00027671,7]
[355572083,1741307435585,-835.27,0.00027671,3]
[355572085,1741307435595,-500.0,0.00027671,3]
[355572087,1741307435605,-1603.14,0.00027671,3]
[355572088,1741307435615,-7838.65,0.00027671,3]
[355572090,1741307435625,-1107.91,0.00027671,3]
[355572092,1741307435636,-1331.05,0.00027671,3]
[355572093,1741307435652,-1357.52,0.00027671,3]
[355572094,1741307435663,-964.55,0.00027671,3]
[355572095,1741307435675,-766.28,0.00027671,3]
[355572096,1741307435686,-1265.72,0.00027671,3]
[355572097,1741307435696,-500.0,0.00027671,3]
[355572098,1741307435707,-2700.69,0.00027671,3]
[355572099,1741307435717,-3210.96,0.00027671,3]
[355572100,1741307435727,-2162.64,0.00027671,3]
[355572101,1741307435736,-540.58,0.00027671,3]
[355572102,1741307435746,-500.0,0.00027671,3]
[355572103,1741307435757,-3979.03,0.00027671,3]
[355572104,1741307435767,-631.93619806,0.00027671,3]
[355572105,1741307435777,-500.0,0.00027671,3]
[355572106,1741307435787,-1315.76,0.00027671,3]
[355572107,1741307435797,-500.0,0.00027671,3]
[355572108,1741307435807,-1053.73,0.00027671,3]
[355572109,1741307435817,-840.59,0.00027671,3]
[355572110,1741307435827,-9332.2,0.00027671,3]
[355572111,1741307435836,-544.39,0.00027671,3]
[355572112,1741307435846,-500.0,0.00027671,3]
[355572113,1741307435856,-1881.66,0.00027671,3]
[355572114,1741307435867,-500.0,0.00027671,3]
[355572115,1741307435877,-615.28,0.00027671,3]
[355572116,1741307435895,-526.80860142,0.00027671,2]
[355572117,1741307435906,-796.09711343,0.00027782,2]
[355572118,1741307435920,-4163.06153641,0.00027782,2]
[355572119,1741307435930,-28882.9123044,0.00027879,2]
[355572120,1741307435940,-28882.9123044,0.00027935,2]
[355572121,1741307435950,-662.59,0.00027945,3]
[355572122,1741307435961,-500.0,0.00027945,3]
[355572123,1741307435970,-500.0,0.00027945,3]
[355572124,1741307435980,-562.88,0.00027945,3]
[355572125,1741307435989,-1226.37,0.00027945,3]
[355572126,1741307435999,-1752.79,0.00027945,3]
[355572127,1741307436009,-1250.12,0.00027945,3]
[355572128,1741307436018,-869.26,0.00027945,3]
[355572129,1741307436028,-501.14,0.00027945,3]
[355572130,1741307436038,-1032.39,0.00027945,3]
[355572131,1741307436048,-961.43,0.00027945,3]
[355572132,1741307436058,-1674.61,0.00027945,3]
[355572133,1741307436068,-583.81,0.00027945,3]
[355572134,1741307436078,-500.0,0.00027945,3]
[355572135,1741307436087,-1641.96,0.00027945,3]
[355572136,1741307436098,-843.57,0.00027945,3]
[355572137,1741307436108,-500.0,0.00027945,3]
[355572138,1741307436117,-4022.08,0.00027945,3]
[355572139,1741307436127,-500.0,0.00027945,3]
[355572140,1741307436139,-500.0,0.00027945,3]
[355572141,1741307436149,-500.0,0.00027945,3]
[355572142,1741307436158,-703.61,0.00027945,3]
[355572143,1741307436168,-500.0,0.00027945,3]
[355572144,1741307436178,-590.37,0.00027945,3]
[355572145,1741307436188,-500.0,0.00027945,3]
[355572146,1741307436199,-500.0,0.00027945,3]
[355572147,1741307436209,-1808.32,0.00027945,3]
[355572148,1741307436219,-2825.69,0.00027945,3]
[355572149,1741307436228,-2440.64,0.00027945,3]
[355572150,1741307436238,-500.0,0.00027945,3]
[355572151,1741307436248,-2487.29,0.00027945,3]
[355572152,1741307436257,-1907.94,0.00027945,3]
[355572153,1741307436267,-660.84,0.00027945,3]
[355572154,1741307436276,-500.0,0.00027945,3]
[355572155,1741307436290,-2808.34,0.00027945,3]
[355572156,1741307436299,-522.04,0.00027945,3]
[355572157,1741307436309,-1170.32,0.00027945,3]
[355572158,1741307436319,-2644.1,0.00027945,3]
[355572159,1741307436329,-919.72,0.00027945,3]
[355572160,1741307436339,-500.0,0.00027945,3]
[355572161,1741307436348,-500.0,0.00027945,3]
[355572162,1741307436358,-598.32,0.00027945,3]
[355572163,1741307436368,-500.0,0.00027945,3]
[355572164,1741307436377,-1625.8,0.00027945,3]
[355572165,1741307436390,-9451.79,0.00027945,3]
[355572166,1741307436399,-2506.95,0.00027945,3]
[355572167,1741307436409,-500.0,0.00027945,3]
[355572168,1741307436422,-781.39,0.00027945,3]
[355572169,1741307436432,-641.00386956,0.00027945,3]